[Event "Championnat du monde jeunes U12"]
[Date "2024.11.20"]
[White "Fulgentini, Edoardo"]
[Black "Diachek, Andrii"]
[WhiteElo "2075"]
[BlackElo "2162"]
[Round "6.5"]
[Result "1/2-1/2"]
[TimeControl "5400+30"]

1. e4 {[%clk 1:30:57]} 1... e5 {[%clk 1:30:50]} 2. Nf3 {[%clk 1:31:10]} 2... Nc6
{[%clk 1:31:14]} 3. Bb5 {[%clk 1:29:28]} 3... a6 {[%clk 1:31:35]} 4. Ba4 {[%clk
1:29:40]} 4... Nf6 {[%clk 1:32:00]} 5. O-O {[%clk 1:30:06]} 5... Be7 {[%clk
1:32:15]} 6. Re1 {[%clk 1:30:30]} 6... b5 {[%clk 1:32:32]} 7. Bb3 {[%clk
1:30:56]} 7... O-O {[%clk 1:32:50]} 8. d4 {[%clk 1:31:18]} 8... d6 {[%clk
1:33:12]} 9. c3 {[%clk 1:31:17]} 9... Bg4 {[%clk 1:32:44]} 10. Be3 {[%clk
1:31:34]} 10... exd4 {[%clk 1:19:03]} 11. cxd4 {[%clk 1:30:46]} 11... Na5 {[%clk
1:18:44]} 12. Bc2 {[%clk 1:28:56]} 12... c5 {[%clk 1:17:19]} 13. Nbd2 {[%clk
1:18:52]} 13... Re8 {[%clk 1:04:13]} 14. h3 {[%clk 1:14:15]} 14... Bh5 {[%clk
1:00:43]} 15. Nf1 {[%clk 1:09:07]} 15... Nc6 {[%clk 0:45:47]} 16. Ng3 {[%clk
1:02:20]} 16... Bg6 {[%clk 0:44:04]} 17. Nh4 {[%clk 0:48:26]} 17... cxd4 {[%clk
0:37:23]} 18. Bxd4 {[%clk 0:48:13]} 18... Nxd4 {[%clk 0:35:13]} 19. Qxd4 {[%clk
0:47:39]} 19... Nd7 {[%clk 0:34:28]} 20. Nxg6 {[%clk 0:45:23]} 20... hxg6 {[%clk
0:34:38]} 21. Rad1 {[%clk 0:42:27]} 21... Rc8 {[%clk 0:24:39]} 22. Bb3 {[%clk
0:37:51]} 22... Ne5 {[%clk 0:23:27]} 23. Bd5 {[%clk 0:36:40]} 23... Nc6 {[%clk
0:19:19]} 24. Qd2 {[%clk 0:33:55]} 24... Bf6 {[%clk 0:17:16]} 25. Rc1 {[%clk
0:28:00]} 25... Qb6 {[%clk 0:15:52]} 26. Ne2 {[%clk 0:22:58]} 26... Ne5 {[%clk
0:14:05]} 27. b3 {[%clk 0:17:50]} 27... Rc5 {[%clk 0:12:24]} 28. Rxc5 {[%clk
0:17:11]} 28... dxc5 {[%clk 0:11:32]} 29. Rc1 {[%clk 0:17:11]} 29... Nc6 {[%clk
0:09:58]} 30. Qe3 {[%clk 0:16:31]} 30... Nd4 {[%clk 0:09:00]} 31. Nxd4 {[%clk
0:16:34]} 31... Bxd4 {[%clk 0:09:18]} 32. Qf4 {[%clk 0:16:20]} 32... Qf6 {[%clk
0:09:16]} 33. Qxf6 {[%clk 0:16:05]} 33... gxf6 {[%clk 0:09:42]} 34. Kf1 {[%clk
0:13:58]} 34... Kf8 {[%clk 0:08:34]} 35. f3 {[%clk 0:12:40]} 35... Rd8 {[%clk
0:07:47]} 36. Ke2 {[%clk 0:12:20]} 36... f5 {[%clk 0:06:42]} 37. Kd3 {[%clk
0:11:21]} 37... f4 {[%clk 0:05:51]} 38. Rc2 {[%clk 0:09:41]} 38... Bg1 {[%clk
0:05:38]} 39. a4 {[%clk 0:08:42]} 39... bxa4 {[%clk 0:05:07]} 40. bxa4 {[%clk
0:09:07]} 40... Rb8 {[%clk 0:05:08]} 41. Bc4 {[%clk 0:09:15]} 41... a5 {[%clk
0:03:47]} 42. Bb5 {[%clk 0:09:33]} 42... Rd8+ {[%clk 0:03:49]} 43. Ke2 {[%clk
0:09:01]} 43... Ke7 {[%clk 0:03:16]} 44. Rd2 {[%clk 0:09:13]} 44... Bd4 {[%clk
0:03:20]} 45. Kf1 {[%clk 0:08:39]} 45... Kd6 {[%clk 0:02:47]} 46. Rd1 {[%clk
0:07:26]} 46... Rb8 {[%clk 0:02:19]} 47. Ke2 {[%clk 0:07:08]} 47... Ke5 {[%clk
0:02:11]} 48. Rc1 {[%clk 0:05:05]} 48... f6 {[%clk 0:01:34]} 49. Rd1 {[%clk
0:04:06]} 49... g5 {[%clk 0:01:34]} 50. Rd2 {[%clk 0:03:12]} 50... Rd8 {[%clk
0:01:30]} 51. Kf1 {[%clk 0:02:57]} 51... Rc8 {[%clk 0:01:36]} 52. Ke2 {[%clk
0:02:36]} 52... Rd8 {[%clk 0:01:53]} 53. Kf1 {[%clk 0:03:01]} 1/2-1/2

[Variant "Standard"]
[Site "Europe Echecs"]

[Event "Championnat du monde jeunes U12"]
[Date "2024.11.20"]
[White "Gao, Heye"]
[Black "Shilon Rahav, Eliran"]
[WhiteElo "1933"]
[BlackElo "2150"]
[Round "6.6"]
[Result "1-0"]
[TimeControl "5400+30"]

1. e4 {[%clk 1:30:45]} 1... c5 {[%clk 1:30:52]} 2. Nf3 {[%clk 1:30:35]} 2... Nc6
{[%clk 1:31:06]} 3. Nc3 {[%clk 1:28:45]} 3... e5 {[%clk 1:31:25]} 4. Bc4 {[%clk
1:28:40]} 4... g6 {[%clk 1:31:44]} 5. d3 {[%clk 1:28:05]} 5... h6 {[%clk
1:31:58]} 6. Ng1 {[%clk 1:27:37]} 6... Bg7 {[%clk 1:29:43]} 7. f4 {[%clk
1:27:13]} 7... Nf6 {[%clk 1:17:49]} 8. Nf3 {[%clk 1:24:13]} 8... d6 {[%clk
1:15:03]} 9. O-O {[%clk 1:21:04]} 9... Bg4 {[%clk 1:13:07]} 10. h3 {[%clk
1:15:27]} 10... Bxf3 {[%clk 1:13:14]} 11. Qxf3 {[%clk 1:14:53]} 11... Nd4 {[%clk
1:12:43]} 12. Qf2 {[%clk 1:12:46]} 12... Nc6 {[%clk 0:42:17]} 13. Nd5 {[%clk
0:55:24]} 13... O-O {[%clk 0:39:51]} 14. f5 {[%clk 0:54:30]} 14... Kh7 {[%clk
0:31:02]} 15. g4 {[%clk 0:50:57]} 15... g5 {[%clk 0:18:03]} 16. h4 {[%clk
0:49:09]} 16... gxh4 {[%clk 0:16:57]} 17. g5 {[%clk 0:48:58]} 17... Nxd5 {[%clk
0:13:53]} 18. exd5 {[%clk 0:48:59]} 18... hxg5 {[%clk 0:01:01]} 19. f6 {[%clk
0:48:56]} 19... Bh6 {[%clk 0:00:55]} 20. dxc6 {[%clk 0:49:12]} 20... d5 {[%clk
0:00:41]} 21. Qf5+ {[%clk 0:49:34]} 21... Kh8 {[%clk 0:01:10]} 22. cxb7 {[%clk
0:49:36]} 22... Rb8 {[%clk 0:01:40]} 23. Bb3 {[%clk 0:49:53]} 23... c4 {[%clk
0:01:01]} 24. Kh1 {[%clk 0:50:10]} 24... Rg8 {[%clk 0:01:05]} 25. dxc4 {[%clk
0:50:22]} 25... Rxb7 {[%clk 0:00:47]} 26. cxd5 {[%clk 0:50:28]} 26... Rxb3
{[%clk 0:00:39]} 27. axb3 {[%clk 0:50:46]} 27... Qxd5+ {[%clk 0:01:06]} 28. Qf3
{[%clk 0:50:56]} 28... e4 {[%clk 0:00:56]} 29. Qh5 {[%clk 0:49:31]} 29... Rg6
{[%clk 0:01:02]} 30. Be3 {[%clk 0:49:20]} 30... Qd7 {[%clk 0:00:50]} 31. Kg2
{[%clk 0:49:01]} 31... Qc7 {[%clk 0:00:59]} 32. Qg4 {[%clk 0:48:41]} 32... Qxc2+
{[%clk 0:01:17]} 33. Rf2 {[%clk 0:49:04]} 33... Qxb3 {[%clk 0:01:19]} 34. Rxa7
{[%clk 0:49:18]} 34... Qxe3 {[%clk 0:01:32]} 35. Rxf7 {[%clk 0:48:45]} 35... Qb3
{[%clk 0:00:51]} 36. Re7 {[%clk 0:47:30]} 36... e3 {[%clk 0:00:34]} 37. Qc8+
{[%clk 0:45:25]} 37... Rg8 {[%clk 0:00:56]} 38. Qf5 {[%clk 0:45:21]} 38... h3+
{[%clk 0:00:57]} 39. Qxh3 {[%clk 0:45:11]} 39... Qd5+ {[%clk 0:00:59]} 40. Qf3
{[%clk 0:44:03]} 40... Qc4 {[%clk 0:00:31]} 41. Qf5 {[%clk 0:40:21]} 41... Rg6
{[%clk 0:00:33]} 42. Rc2 {[%clk 0:40:32]} 42... Qxc2+ {[%clk 0:00:31]} 1-0

[Variant "Standard"]
[Site "Europe Echecs"]

[Event "Championnat du monde jeunes U12"]
[Date "2024.11.20"]
[White "Obidjonov, Oriyat"]
[Black "Golubovic, Erik"]
[WhiteElo "2074"]
[BlackElo "2147"]
[Round "6.7"]
[Result "1-0"]
[TimeControl "5400+30"]

1. e4 {[%clk 1:30:15]} 1... c5 {[%clk 1:30:42]} 2. Nf3 {[%clk 1:30:19]} 2... d6
{[%clk 1:31:03]} 3. c3 {[%clk 1:30:30]} 3... Nf6 {[%clk 1:30:47]} 4. h3 {[%clk
1:30:44]} 4... g6 {[%clk 1:27:50]} 5. Bd3 {[%clk 1:30:35]} 5... Bg7 {[%clk
1:28:04]} 6. Bc2 {[%clk 1:28:34]} 6... O-O {[%clk 1:28:05]} 7. d4 {[%clk
1:28:35]} 7... Nc6 {[%clk 1:25:41]} 8. d5 {[%clk 1:28:48]} 8... Nb8 {[%clk
1:25:13]} 9. O-O {[%clk 1:28:21]} 9... e6 {[%clk 1:19:05]} 10. c4 {[%clk
1:23:17]} 10... exd5 {[%clk 1:18:01]} 11. cxd5 {[%clk 1:21:55]} 11... Nbd7
{[%clk 1:08:16]} 12. Nc3 {[%clk 1:15:14]} 12... a6 {[%clk 1:07:15]} 13. a4
{[%clk 1:15:23]} 13... Rb8 {[%clk 1:01:29]} 14. a5 {[%clk 1:09:38]} 14... b5
{[%clk 1:00:03]} 15. axb6 {[%clk 1:09:08]} 15... Rxb6 {[%clk 1:00:02]} 16. Ra2
{[%clk 1:09:04]} 16... Nh5 {[%clk 0:57:51]} 17. Bg5 {[%clk 0:58:43]} 17... Qc7
{[%clk 0:52:22]} 18. Nd2 {[%clk 0:49:39]} 18... Rb4 {[%clk 0:48:05]} 19. Bd3
{[%clk 0:46:44]} 19... Ne5 {[%clk 0:36:30]} 20. Be2 {[%clk 0:46:20]} 20... Nf6
{[%clk 0:35:35]} 21. f4 {[%clk 0:39:35]} 21... Ned7 {[%clk 0:34:34]} 22. Bxa6
{[%clk 0:38:15]} 22... Nh5 {[%clk 0:24:25]} 23. Bxc8 {[%clk 0:27:34]} 23... Rxc8
{[%clk 0:24:20]} 24. Kh2 {[%clk 0:27:55]} 24... Rcb8 {[%clk 0:21:38]} 25. Qc1
{[%clk 0:27:06]} 25... Nb6 {[%clk 0:18:15]} 26. Nd1 {[%clk 0:21:37]} 26... Nf6
{[%clk 0:14:01]} 27. Qc2 {[%clk 0:20:39]} 27... Re8 {[%clk 0:13:01]} 28. Nc3
{[%clk 0:19:31]} 28... Nc4 {[%clk 0:09:58]} 29. Nxc4 {[%clk 0:19:54]} 29... Rxc4
{[%clk 0:10:26]} 30. Ra4 {[%clk 0:20:18]} 30... Rb4 {[%clk 0:06:55]} 31. Rfa1
{[%clk 0:18:28]} 31... h6 {[%clk 0:05:50]} 32. Bxf6 {[%clk 0:17:35]} 32... Bxf6
{[%clk 0:06:17]} 33. e5 {[%clk 0:17:21]} 33... dxe5 {[%clk 0:01:53]} 34. Ne4
{[%clk 0:17:27]} 34... Rxe4 35. Qxe4 {[%clk 0:17:46]} 35... Rf8 {[%clk 0:00:39]}
36. Ra7 {[%clk 0:16:19]} 36... Qb8 {[%clk 0:00:49]} 37. f5 {[%clk 0:16:19]}
37... gxf5 {[%clk 0:00:35]} 38. Qxf5 {[%clk 0:16:41]} 38... e4+ {[%clk 0:00:53]}
39. Kh1 {[%clk 0:17:03]} 39... Qxb2 {[%clk 0:00:57]} 40. Qxe4 {[%clk 0:16:42]}
40... Qb3 {[%clk 0:00:35]} 41. Rf1 {[%clk 0:17:01]} 41... Bg7 {[%clk 0:00:40]}
42. Qf5 {[%clk 0:15:53]} 42... Qc4 {[%clk 0:00:35]} 43. d6 {[%clk 0:15:36]}
43... Qd4 {[%clk 0:00:34]} 44. Rxf7 {[%clk 0:15:42]} 44... Qxd6 {[%clk 0:00:42]}
45. Rxf8+ {[%clk 0:16:07]} 45... Bxf8 {[%clk 0:01:04]} 46. Qf7+ {[%clk 0:16:34]}
1-0

[Variant "Standard"]
[Site "Europe Echecs"]

[Event "Championnat du monde jeunes U12"]
[Date "2024.11.20"]
[White "Mamikonyan, Artem T"]
[Black "Luger, Sam"]
[WhiteElo "1918"]
[BlackElo "2094"]
[Round "6.8"]
[Result "1/2-1/2"]
[TimeControl "5400+30"]

1. e4 {[%clk 1:30:57]} 1... e5 {[%clk 1:30:33]} 2. Nf3 {[%clk 1:31:22]} 2... Nc6
{[%clk 1:30:58]} 3. Bc4 Nf6 {[%clk 1:31:23]} 4. d3 {[%clk 1:32:07]} 4... h6
{[%clk 1:31:49]} 5. O-O {[%clk 1:32:02]} 5... d6 {[%clk 1:32:16]} 6. c3 {[%clk
1:32:22]} 6... g5 {[%clk 1:32:32]} 7. a4 {[%clk 1:30:44]} 7... Bg7 {[%clk
1:28:36]} 8. Qb3 {[%clk 1:30:56]} 8... O-O {[%clk 1:28:42]} 9. a5 {[%clk
1:31:16]} 9... Ne7 {[%clk 1:17:22]} 10. Be3 {[%clk 1:23:40]} 10... Ng6 {[%clk
1:06:08]} 11. Nbd2 {[%clk 1:23:27]} 11... c6 {[%clk 0:57:37]} 12. d4 {[%clk
1:21:15]} 12... g4 {[%clk 0:35:28]} 13. Ne1 {[%clk 1:21:22]} 13... Qe7 {[%clk
0:26:55]} 14. Qc2 {[%clk 0:56:35]} 14... Be6 {[%clk 0:06:18]} 15. a6 {[%clk
0:52:04]} 15... b6 {[%clk 0:03:16]} 16. Bd3 {[%clk 0:51:35]} 16... Nf4 {[%clk
0:02:33]} 17. g3 {[%clk 0:51:43]} 17... Nxd3 {[%clk 0:02:25]} 18. Nxd3 {[%clk
0:51:55]} 18... Nh7 19. Nb4 {[%clk 0:51:35]} 19... Qc7 {[%clk 0:00:51]} 20. d5
{[%clk 0:51:52]} 20... cxd5 {[%clk 0:00:56]} 21. exd5 {[%clk 0:51:31]} 21... Bd7
{[%clk 0:01:05]} 22. Qd3 {[%clk 0:50:52]} 22... Rac8 {[%clk 0:01:07]} 23. f4
{[%clk 0:50:49]} 23... exf4 {[%clk 0:00:49]} 24. Bxf4 {[%clk 0:51:07]} 24... Ng5
{[%clk 0:01:02]} 25. Bxg5 {[%clk 0:50:49]} 25... hxg5 {[%clk 0:01:22]} 26. Rae1
{[%clk 0:51:07]} 26... f5 {[%clk 0:01:22]} 27. Re7 {[%clk 0:51:14]} 27... Qd8
{[%clk 0:00:59]} 28. Rfe1 {[%clk 0:51:38]} 28... Be5 {[%clk 0:01:02]} 29. R7xe5
{[%clk 0:50:38]} 29... dxe5 {[%clk 0:01:28]} 30. Rxe5 {[%clk 0:51:04]} 30... Qf6
{[%clk 0:01:31]} 31. Qd4 {[%clk 0:51:02]} 31... Rce8 {[%clk 0:01:03]} 32. Nc4
{[%clk 0:51:24]} 32... b5 {[%clk 0:00:43]} 33. Rxe8 {[%clk 0:51:44]} 33... Qxd4+
{[%clk 0:01:10]} 34. cxd4 {[%clk 0:52:09]} 34... Rxe8 {[%clk 0:01:09]} 35. Ne5
{[%clk 0:52:32]} 35... Rd8 {[%clk 0:00:59]} 36. Kf2 {[%clk 0:47:58]} 36... Kf8
{[%clk 0:00:43]} 37. Ke3 {[%clk 0:48:02]} 37... Ke7 {[%clk 0:00:40]} 38. d6+
{[%clk 0:46:49]} 38... Ke6 {[%clk 0:00:39]} 39. Nbd3 {[%clk 0:47:10]} 39... Rc8
{[%clk 0:00:51]} 40. d5+ {[%clk 0:47:13]} 40... Kxd5 {[%clk 0:01:05]} 41. Nxd7
{[%clk 0:47:38]} 41... Kxd6 {[%clk 0:01:14]} 42. N7e5 {[%clk 0:47:24]} 42... Kd5
{[%clk 0:01:01]} 43. Nf7 {[%clk 0:47:27]} 43... Rg8 {[%clk 0:01:01]} 44. b3
{[%clk 0:44:10]} 44... Rg7 {[%clk 0:01:00]} 45. Nd8 {[%clk 0:44:25]} 45... Rh7
{[%clk 0:01:01]} 46. Nb7 {[%clk 0:43:30]} 46... Kc6 {[%clk 0:01:01]} 47. Nb4+
{[%clk 0:41:47]} 47... Kb6 {[%clk 0:01:06]} 48. Nd5+ {[%clk 0:42:12]} 48... Kc6
{[%clk 0:01:04]} 49. Nb4+ {[%clk 0:42:37]} 49... Kb6 {[%clk 0:00:39]} 50. Nd5+
{[%clk 0:43:02]} 50... Kc6 {[%clk 0:00:42]} 51. Nb4+ {[%clk 0:43:23]} 51... Kc7
{[%clk 0:00:50]} 52. Nd5+ {[%clk 0:43:46]} 52... Kb8 {[%clk 0:00:38]} 53. Na5
{[%clk 0:37:52]} 53... Rh6 {[%clk 0:00:48]} 54. Nb4 {[%clk 0:37:35]} 54... Rxh2
{[%clk 0:00:46]} 55. Nac6+ {[%clk 0:37:54]} 55... Ka8 {[%clk 0:00:41]} 56. Nd5
{[%clk 0:38:04]} 56... Rh7 {[%clk 0:00:50]} 57. Kd4 {[%clk 0:36:17]} 57... Rg7
{[%clk 0:00:37]} 58. Ne5 {[%clk 0:35:33]} 58... Kb8 {[%clk 0:00:39]} 1/2-1/2

[Variant "Standard"]
[Site "Europe Echecs"]

[Event "Championnat du monde jeunes U12"]
[Date "2024.11.20"]
[White "Birmenko, Nikolay"]
[Black "Le, Anh Tu"]
[WhiteElo "2084"]
[BlackElo "1812"]
[Round "6.9"]
[Result "1-0"]
[TimeControl "5400+30"]

1. e4 {[%clk 1:30:57]} 1... c5 {[%clk 1:30:51]} 2. Nf3 {[%clk 1:31:22]} 2... Nc6
{[%clk 1:31:15]} 3. Bb5 {[%clk 1:31:48]} 3... e6 {[%clk 1:31:40]} 4. Bxc6 {[%clk
1:32:10]} 4... bxc6 {[%clk 1:32:03]} 5. d3 {[%clk 1:32:31]} 5... Ne7 {[%clk
1:32:03]} 6. Qe2 {[%clk 1:32:57]} 6... Ng6 {[%clk 1:32:16]} 7. h4 {[%clk
1:32:53]} 7... h5 {[%clk 1:31:25]} 8. e5 {[%clk 1:33:05]} 8... f6 {[%clk
1:31:34]} 9. Nbd2 {[%clk 1:29:54]} 9... Qc7 {[%clk 1:28:53]} 10. Nc4 {[%clk
1:25:38]} 10... Ba6 {[%clk 1:21:43]} 11. Qe4 {[%clk 1:19:39]} 11... Kf7 {[%clk
1:19:53]} 12. Bf4 {[%clk 1:17:30]} 12... Qb7 {[%clk 1:18:58]} 13. O-O-O {[%clk
1:11:15]} 13... f5 {[%clk 1:17:47]} 14. Qe3 {[%clk 1:10:20]} 14... Rb8 {[%clk
1:18:08]} 15. b3 {[%clk 1:09:54]} 15... Qb4 {[%clk 1:17:04]} 16. g3 {[%clk
1:03:27]} 16... Ne7 {[%clk 1:04:18]} 17. Qe1 {[%clk 0:45:57]} 17... Qxe1 {[%clk
0:57:49]} 18. Nd6+ {[%clk 0:43:36]} 18... Kg6 {[%clk 0:57:16]} 19. Rhxe1 {[%clk
0:40:19]} 19... Nd5 {[%clk 0:56:42]} 20. c4 {[%clk 0:39:28]} 20... Nxf4 {[%clk
0:53:15]} 21. gxf4 {[%clk 0:39:48]} 21... Be7 {[%clk 0:53:44]} 22. Rg1+ {[%clk
0:34:15]} 22... Kh7 {[%clk 0:53:56]} 23. Ng5+ {[%clk 0:33:49]} 23... Bxg5 {[%clk
0:54:11]} 24. Rxg5 {[%clk 0:34:01]} 24... g6 {[%clk 0:54:34]} 25. Rdg1 {[%clk
0:33:30]} 25... Rhg8 {[%clk 0:54:56]} 26. Kb2 {[%clk 0:32:11]} 26... Rb6 {[%clk
0:54:52]} 27. R5g3 {[%clk 0:30:52]} 27... Rbb8 {[%clk 0:54:36]} 28. Kc3 {[%clk
0:30:05]} 28... Bb7 {[%clk 0:52:13]} 29. a3 {[%clk 0:26:21]} 29... a5 {[%clk
0:50:22]} 30. d4 {[%clk 0:26:41]} 30... cxd4+ {[%clk 0:50:45]} 31. Kxd4 {[%clk
0:27:07]} 31... Ba8 {[%clk 0:40:38]} 32. Kc5 {[%clk 0:27:00]} 32... Kh6 {[%clk
0:40:01]} 33. Nf7+ {[%clk 0:21:44]} 33... Kg7 {[%clk 0:39:55]} 34. Ng5 {[%clk
0:20:42]} 34... Kh6 {[%clk 0:38:28]} 35. Rd1 {[%clk 0:20:13]} 35... Rg7 {[%clk
0:38:22]} 36. Rgd3 {[%clk 0:20:11]} 36... Rb7 {[%clk 0:38:42]} 37. b4 {[%clk
0:16:26]} 37... Re7 {[%clk 0:33:25]} 38. bxa5 {[%clk 0:16:43]} 38... Ra7 {[%clk
0:33:47]} 39. a6 {[%clk 0:16:47]} 39... Rxa6 {[%clk 0:32:51]} 40. Rxd7 {[%clk
0:17:02]} 40... Ra7 {[%clk 0:33:18]} 41. Rxe7 {[%clk 0:17:06]} 41... Rxe7 {[%clk
0:33:46]} 42. Rd8 {[%clk 0:17:27]} 42... Bb7 {[%clk 0:34:06]} 43. Kd6 {[%clk
0:17:45]} 1-0

[Variant "Standard"]
[Site "Europe Echecs"]

[Event "Championnat du monde jeunes U12"]
[Date "2024.11.20"]
[White "Bulgak, Damir"]
[Black "Sahbudak, Baris Cinar"]
[WhiteElo "2044"]
[BlackElo "2264"]
[Round "6.10"]
[Result "0-1"]
[TimeControl "5400+30"]

1. Nf3 {[%clk 1:30:36]} 1... Nf6 {[%clk 1:29:55]} 2. c4 {[%clk 1:30:30]} 2... g6
{[%clk 1:28:54]} 3. Nc3 {[%clk 1:30:39]} 3... d5 {[%clk 1:25:04]} 4. cxd5 {[%clk
1:30:30]} 4... Nxd5 {[%clk 1:24:54]} 5. h4 {[%clk 1:30:39]} 5... h5 {[%clk
1:21:07]} 6. Qb3 {[%clk 1:26:21]} 6... Nb6 {[%clk 1:17:31]} 7. Ng5 {[%clk
1:26:04]} 7... e6 {[%clk 1:16:44]} 8. g3 {[%clk 1:22:14]} 8... Nc6 {[%clk
1:12:32]} 9. Bg2 {[%clk 1:21:52]} 9... Bg7 {[%clk 1:09:08]} 10. O-O {[%clk
1:21:43]} 10... O-O {[%clk 1:06:40]} 11. d3 {[%clk 1:18:58]} 11... Qe7 {[%clk
1:04:59]} 12. Nge4 {[%clk 0:58:42]} 12... Nd4 {[%clk 0:56:29]} 13. Qd1 {[%clk
0:59:04]} 13... e5 {[%clk 0:55:22]} 14. Bg5 {[%clk 0:58:33]} 14... f6 {[%clk
0:50:52]} 15. Be3 {[%clk 0:57:00]} 15... c6 {[%clk 0:47:35]} 16. Nd2 {[%clk
0:47:44]} 16... Nf5 {[%clk 0:39:55]} 17. Bxb6 {[%clk 0:47:34]} 17... axb6 {[%clk
0:39:59]} 18. Nc4 {[%clk 0:47:18]} 18... Ra6 {[%clk 0:38:14]} 19. a4 {[%clk
0:46:10]} 19... Be6 {[%clk 0:37:27]} 20. b3 {[%clk 0:41:41]} 20... Rd8 {[%clk
0:24:50]} 21. Rb1 {[%clk 0:38:27]} 21... b5 {[%clk 0:13:28]} 22. Nd2 b4 {[%clk
0:10:07]} 23. Nce4 {[%clk 0:28:08]} 23... Bd5 {[%clk 0:09:02]} 24. Rc1 {[%clk
0:24:30]} 24... Nd4 {[%clk 0:08:03]} 25. Nc4 {[%clk 0:16:45]} 25... Ne6 {[%clk
0:06:28]} 26. Ned2 {[%clk 0:09:43]} 26... Bxg2 {[%clk 0:06:19]} 27. Kxg2 {[%clk
0:10:12]} 27... f5 {[%clk 0:06:11]} 28. Qe1 {[%clk 0:08:18]} 28... b5 {[%clk
0:05:19]} 29. axb5 {[%clk 0:08:30]} 29... cxb5 {[%clk 0:05:48]} 30. Ne3 {[%clk
0:08:08]} 30... Nd4 {[%clk 0:04:10]} 31. Nc2 {[%clk 0:06:06]} 31... e4 {[%clk
0:02:58]} 32. Nxd4 Bxd4 {[%clk 0:03:01]} 33. Qd1 {[%clk 0:03:43]} 33... Bc3
{[%clk 0:00:55]} 34. Qc2 {[%clk 0:03:06]} 34... Rad6 {[%clk 0:00:56]} 35. d4
{[%clk 0:02:52]} 35... Bxd4 {[%clk 0:00:34]} 36. Nb1 {[%clk 0:02:35]} 36... f4
{[%clk 0:00:35]} 37. gxf4 {[%clk 0:02:31]} 37... Qxh4 {[%clk 0:00:43]} 38. e3
{[%clk 0:01:50]} 38... Qg4+ {[%clk 0:00:56]} 39. Kh2 {[%clk 0:02:15]} 39... Qh4+
{[%clk 0:00:53]} 40. Kg2 {[%clk 0:02:45]} 40... Bg7 {[%clk 0:00:47]} 41. Qxe4
{[%clk 0:03:03]} 41... Qg4+ {[%clk 0:00:39]} 42. Kh2 {[%clk 0:03:14]} 42... g5
{[%clk 0:00:33]} 43. Rc5 {[%clk 0:00:33]} 43... Qh4+ {[%clk 0:00:38]} 44. Kg1
{[%clk 0:00:43]} 44... gxf4 {[%clk 0:00:43]} 45. exf4 {[%clk 0:01:05]} 45... Rd1
{[%clk 0:00:33]} 46. Rg5 {[%clk 0:00:56]} 46... Rxf1+ {[%clk 0:00:36]} 47. Kxf1
{[%clk 0:01:25]} 47... Qh3+ {[%clk 0:00:49]} 48. Rg2 {[%clk 0:00:59]} 48... Qh1+
{[%clk 0:01:00]} 49. Ke2 {[%clk 0:01:27]} 49... Qd1+ {[%clk 0:01:25]} 50. Ke3
{[%clk 0:01:56]} 50... Qe1+ {[%clk 0:01:12]} 51. Kf3 {[%clk 0:02:22]} 51... Qd1+
{[%clk 0:01:14]} 52. Ke3 {[%clk 0:02:39]} 52... Qxb3+ {[%clk 0:01:00]} 53. Ke2
{[%clk 0:03:08]} 53... Qd1+ {[%clk 0:01:06]} 54. Ke3 {[%clk 0:03:34]} 54... Qe1+
{[%clk 0:01:22]} 55. Kf3 {[%clk 0:04:02]} 55... Qxe4+ {[%clk 0:01:23]} 56. Kxe4
{[%clk 0:04:31]} 56... Rd1 {[%clk 0:01:52]} 57. f5 {[%clk 0:02:24]} 57... Kf7
{[%clk 0:02:05]} 58. Rg6 {[%clk 0:02:24]} 58... Rxb1 {[%clk 0:02:28]} 59. Rb6
{[%clk 0:02:53]} 59... b3 {[%clk 0:02:19]} 60. Rb7+ {[%clk 0:03:21]} 60... Kg8
{[%clk 0:02:22]} 61. f6 {[%clk 0:03:35]} 61... Bxf6 {[%clk 0:02:28]} 62. Kf5
{[%clk 0:04:04]} 62... Bg7 {[%clk 0:02:46]} 0-1

[Variant "Standard"]
[Site "Europe Echecs"]